﻿DepartmentFamily,Entity,Date,Expense Type,Expense Area,Supplier,Payment Number,Invoice Distribution Amount,Invoice Description,Supplier Post Code,Transaction Type
FOOD STANDARDS AGENCY - Westminster,FOOD STANDARDS AGENCY - Westminster,2021-04-23,Redacted under S43 FOI Act,OPERATIONAL DELIVERY,Redacted under S43 FOI Act,1011715813,136000.00,Redacted under S43 FOI Act,Redacted under S43 FOI Act,Admin
FOOD STANDARDS AGENCY - Westminster,FOOD STANDARDS AGENCY - Westminster,2021-04-14,EXP - PURCHASE OF GOODS/SERVICES - OTHER - PROGRAMME EXPENDITURE,Surveillance,COGNIZANT WORLDWIDE LTD,1011715720,88841.00,Supply of Data Science Capability March 2021,W2 6BD,Admin
FOOD STANDARDS AGENCY - Westminster,FOOD STANDARDS AGENCY - Westminster,2021-04-14,EXP - PURCHASE OF GOODS/SERVICES - OTHER - PROGRAMME EXPENDITURE,Surveillance,COGNIZANT WORLDWIDE LTD,1011715720,27885.00,FSA715 FSA Surveillance Programme  Data Science Core Team,W2 6BD,Admin
FOOD STANDARDS AGENCY - Westminster,FOOD STANDARDS AGENCY - Westminster,2021-04-14,EXP - PURCHASE OF GOODS/SERVICES - OTHER - PROGRAMME EXPENDITURE,Surveillance,COGNIZANT WORLDWIDE LTD,1011715720,17595.00,FSA715 FSA Surveillance Programme  AI Lead - (correct Accounting),W2 6BD,Admin
FOOD STANDARDS AGENCY - Westminster,FOOD STANDARDS AGENCY - Westminster,2021-04-14,EXP - PURCHASE OF GOODS/SERVICES - OTHER - PROGRAMME EXPENDITURE,Surveillance,COGNIZANT WORLDWIDE LTD,1011715720,94748.00,SoW008 - FHRS Enhancement Project,W2 6BD,Admin
FOOD STANDARDS AGENCY - Westminster,FOOD STANDARDS AGENCY - Westminster,2021-04-14,EXP - PURCHASE OF GOODS/SERVICES - OTHER - PROGRAMME EXPENDITURE,Surveillance,COGNIZANT WORLDWIDE LTD,1011715720,26355.00,FSA715 Azure Data Migration,W2 6BD,Admin
FOOD STANDARDS AGENCY - Westminster,FOOD STANDARDS AGENCY - Westminster,2021-04-07,EXP - PURCHASE OF GOODS/SERVICES - OTHER ICT COSTS,DIGITAL,I10 LTD,1011715623,117000.00,FSA728 WP009 - Applications Modernisation Roadmap,NG31 6JL,Admin
FOOD STANDARDS AGENCY - Westminster,FOOD STANDARDS AGENCY - Westminster,2021-04-07,EXP - PURCHASE OF GOODS/SERVICES - IT MANAGEMENT AND CHANGE - IT DEVELOPMENT,DIGITAL,I10 LTD,1011715623,6000.00,FSA728 WP8 - Rota Market Scan,NG31 6JL,Admin
FOOD STANDARDS AGENCY - Westminster,FOOD STANDARDS AGENCY - Westminster,2021-04-07,EXP - PURCHASE OF GOODS/SERVICES - IT MANAGEMENT AND CHANGE - IT DEVELOPMENT,DIGITAL,I10 LTD,1011715623,1200.00,UK VAT - UK VAT,NG31 6JL,Admin
FOOD STANDARDS AGENCY - Westminster,FOOD STANDARDS AGENCY - Westminster,2021-04-07,EXP - PURCHASE OF GOODS/SERVICES - OTHER - PROGRAMME EXPENDITURE,DIGITAL,I10 LTD,1011715623,24525.00,FSA728 LAEMS/Wider Data Service,NG31 6JL,Admin
FOOD STANDARDS AGENCY - Westminster,FOOD STANDARDS AGENCY - Westminster,2021-04-07,EXP - PURCHASE OF GOODS/SERVICES - IT MANAGEMENT AND CHANGE - IT DEVELOPMENT,DIGITAL,I10 LTD,1011715623,3750.00,FSA728 Technology Hardware Disposal,NG31 6JL,Admin
FOOD STANDARDS AGENCY - Westminster,FOOD STANDARDS AGENCY - Westminster,2021-04-07,EXP - PURCHASE OF GOODS/SERVICES - IT MANAGEMENT AND CHANGE - IT DEVELOPMENT,DIGITAL,I10 LTD,1011715623,750.00,UK VAT - UK VAT,NG31 6JL,Admin
FOOD STANDARDS AGENCY - Westminster,FOOD STANDARDS AGENCY - Westminster,2021-04-07,EXP - PURCHASE OF GOODS/SERVICES - OFFICE RELATED - PUBLICATIONS,"DATA, INFORMATION, GOVERNANCE AND SECURITY",I10 LTD,1011715623,59000.00,FSA728 Wp16 Sharepoint Architecture for Records Management,NG31 6JL,Admin
FOOD STANDARDS AGENCY - Westminster,FOOD STANDARDS AGENCY - Westminster,2021-04-07,EXP - PURCHASE OF GOODS/SERVICES - OFFICE RELATED - PUBLICATIONS,"DATA, INFORMATION, GOVERNANCE AND SECURITY",I10 LTD,1011715623,11800.00,UK VAT - UK VAT,NG31 6JL,Admin
FOOD STANDARDS AGENCY - Westminster,FOOD STANDARDS AGENCY - Westminster,2021-04-07,EXP - PURCHASE OF GOODS/SERVICES - OTHER - PROGRAMME EXPENDITURE,DIGITAL,I10 LTD,1011715623,10100.00,FSA728 WP14 Performance Review (Digital - External Services(BC432)),NG31 6JL,Admin
FOOD STANDARDS AGENCY - Westminster,FOOD STANDARDS AGENCY - Westminster,2021-04-07,EXP - PURCHASE OF GOODS/SERVICES - OTHER - PROGRAMME EXPENDITURE,COMMS,I10 LTD,1011715623,9000.00,FSA728 WP14 Performance Review (Comms (BC549)),NG31 6JL,Admin
FOOD STANDARDS AGENCY - Westminster,FOOD STANDARDS AGENCY - Westminster,2021-04-07,EXP - PURCHASE OF GOODS/SERVICES - OTHER - PROGRAMME EXPENDITURE,COMMS,I10 LTD,1011715623,1800.00,UK VAT - UK VAT,NG31 6JL,Admin
FOOD STANDARDS AGENCY - Westminster,FOOD STANDARDS AGENCY - Westminster,2021-04-07,EXP - PURCHASE OF GOODS/SERVICES - OTHER PROFESSIONAL SERVICES,DIGITAL,I10 LTD,1011715623,29675.00,FSA728 WP13 Pattern Library (BC807),NG31 6JL,Admin
FOOD STANDARDS AGENCY - Westminster,FOOD STANDARDS AGENCY - Westminster,2021-04-07,EXP - PURCHASE OF GOODS/SERVICES - OTHER PROFESSIONAL SERVICES,DIGITAL,I10 LTD,1011715623,5935.00,UK VAT - UK VAT,NG31 6JL,Admin
FOOD STANDARDS AGENCY - Westminster,FOOD STANDARDS AGENCY - Westminster,2021-04-07,EXP - PURCHASE OF GOODS/SERVICES - IT MANAGEMENT AND CHANGE - IT DEVELOPMENT,DIGITAL,I10 LTD,1011715623,4250.00,FSA728 WP19 Testing Framework Evaluation,NG31 6JL,Admin
FOOD STANDARDS AGENCY - Westminster,FOOD STANDARDS AGENCY - Westminster,2021-04-07,EXP - PURCHASE OF GOODS/SERVICES - IT MANAGEMENT AND CHANGE - IT DEVELOPMENT,DIGITAL,I10 LTD,1011715623,850.00,UK VAT - UK VAT,NG31 6JL,Admin
FOOD STANDARDS AGENCY - Westminster,FOOD STANDARDS AGENCY - Westminster,2021-04-07,EXP - PURCHASE OF GOODS/SERVICES - OTHER ICT COSTS - COMPUTER SOFTWARE,OPERATIONS TRANSFORMATION PROGRAMME,I10 LTD,1011715623,20000.00,FS430664 WP005  Operations Casework Market Scan  BC664 10085371 Operations Transformation Programme,NG31 6JL,Admin
FOOD STANDARDS AGENCY - Westminster,FOOD STANDARDS AGENCY - Westminster,2021-04-09,EXP - AMORTISATION - INTANGIBLE ASSETS,IT SERVICE DELIVERY,COMPUTACENTER UK LTD,1011715668,16536.84,Technology Refresh - Mobile Phones,AL10 9TW,Capital
FOOD STANDARDS AGENCY - Westminster,FOOD STANDARDS AGENCY - Westminster,2021-04-09,EXP - AMORTISATION - INTANGIBLE ASSETS,IT SERVICE DELIVERY,COMPUTACENTER UK LTD,1011715668,67888.08,Technology Refresh - Mobile Phones,AL10 9TW,Capital
FOOD STANDARDS AGENCY - Westminster,FOOD STANDARDS AGENCY - Westminster,2021-04-09,EXP - AMORTISATION - INTANGIBLE ASSETS,IT SERVICE DELIVERY,COMPUTACENTER UK LTD,1011715668,73545.42,Technology Refresh - Mobile Phones,AL10 9TW,Capital
FOOD STANDARDS AGENCY - Westminster,FOOD STANDARDS AGENCY - Westminster,2021-04-09,EXP - AMORTISATION - INTANGIBLE ASSETS,IT SERVICE DELIVERY,COMPUTACENTER UK LTD,1011715668,101832.12,Technology Refresh - Mobile Phones,AL10 9TW,Capital
FOOD STANDARDS AGENCY - Westminster,FOOD STANDARDS AGENCY - Westminster,2021-04-09,EXP - AMORTISATION - INTANGIBLE ASSETS,IT SERVICE DELIVERY,COMPUTACENTER UK LTD,1011715668,3307.37,UK VAT - UK VAT,AL10 9TW,Capital
FOOD STANDARDS AGENCY - Westminster,FOOD STANDARDS AGENCY - Westminster,2021-04-09,EXP - AMORTISATION - INTANGIBLE ASSETS,IT SERVICE DELIVERY,COMPUTACENTER UK LTD,1011715668,13577.62,UK VAT - UK VAT,AL10 9TW,Capital
FOOD STANDARDS AGENCY - Westminster,FOOD STANDARDS AGENCY - Westminster,2021-04-09,EXP - AMORTISATION - INTANGIBLE ASSETS,IT SERVICE DELIVERY,COMPUTACENTER UK LTD,1011715668,14709.08,UK VAT - UK VAT,AL10 9TW,Capital
FOOD STANDARDS AGENCY - Westminster,FOOD STANDARDS AGENCY - Westminster,2021-04-09,EXP - AMORTISATION - INTANGIBLE ASSETS,IT SERVICE DELIVERY,COMPUTACENTER UK LTD,1011715668,20366.42,UK VAT - UK VAT,AL10 9TW,Capital
FOOD STANDARDS AGENCY - Westminster,FOOD STANDARDS AGENCY - Westminster,2021-04-09,EXP - PURCHASE OF GOODS/SERVICES - OTHER ICT COSTS,IT SERVICE DELIVERY,COMPUTACENTER UK LTD,1011715668,18.91,IT Consumables Hardware - Monitor & keyboard,AL10 9TW,Admin
FOOD STANDARDS AGENCY - Westminster,FOOD STANDARDS AGENCY - Westminster,2021-04-09,EXP - PURCHASE OF GOODS/SERVICES - OTHER ICT COSTS,IT SERVICE DELIVERY,COMPUTACENTER UK LTD,1011715668,3.78,UK VAT - UK VAT,AL10 9TW,Admin
FOOD STANDARDS AGENCY - Westminster,FOOD STANDARDS AGENCY - Westminster,2021-04-23,EXP - RENTALS UNDER NON-PFI OPERATING LEASES - OTHER RENTALS - RENT,SECURITY & ESTATES,GOVERNMENT PROPERTY AGENCY,1011715826,300145.31,SOP1-772503-173305-174097-CLIVE HOUSE RENT,EH3 8EG,Admin
FOOD STANDARDS AGENCY - Westminster,FOOD STANDARDS AGENCY - Westminster,2021-04-08,EXP - PURCHASE OF GOODS/SERVICES - OTHER ICT COSTS,Surveillance,I10 LTD,1011715658,36300.00,"FSA728 WP1 - Developing Data, Digital And Tech Service Capabilities & Skills",NG31 6JL,Admin
FOOD STANDARDS AGENCY - Westminster,FOOD STANDARDS AGENCY - Westminster,2021-04-08,EXP - PURCHASE OF GOODS/SERVICES - ICT OUTSOURCING & MAINT/SUPPORT,FOOD HYPERSENSITIVITIES,I10 LTD,1011715658,67150.00,FSA728 WP004 FARRM,NG31 6JL,Admin
FOOD STANDARDS AGENCY - Westminster,FOOD STANDARDS AGENCY - Westminster,2021-04-08,EXP - PURCHASE OF GOODS/SERVICES - ICT OUTSOURCING & MAINT/SUPPORT,CORPORATE SUPPORT UNIT,I10 LTD,1011715658,41500.00,FSA728 WP015 CSU Alpha,NG31 6JL,Admin
FOOD STANDARDS AGENCY - Westminster,FOOD STANDARDS AGENCY - Westminster,2021-04-08,EXP - PURCHASE OF GOODS/SERVICES - OTHER - PROGRAMME EXPENDITURE,DIGITAL,I10 LTD,1011715658,30900.00,FSA728 WP18 Information Flows,NG31 6JL,Admin
FOOD STANDARDS AGENCY - Westminster,FOOD STANDARDS AGENCY - Westminster,2021-04-20,Redacted under S43 FOI Act,OPERATIONAL DELIVERY,Redacted under S43 FOI Act,1011715783,139383.00,Redacted under S43 FOI Act,Redacted under S43 FOI Act,Admin
FOOD STANDARDS AGENCY - Westminster,FOOD STANDARDS AGENCY - Westminster,2021-04-06,EXP - PURCHASE OF GOODS/SERVICES - OTHER - PROGRAMME EXPENDITURE,SCIENTIFIC METHODS AND LABORATORY POLICY,C E F A S,2011700025,31250.00,FAO Reference Centre for Bivalve Mollusc Sanitation,NR33 0HT,Admin
FOOD STANDARDS AGENCY - Westminster,FOOD STANDARDS AGENCY - Westminster,2021-04-06,EXP - PURCHASE OF GOODS/SERVICES - OTHER - PROGRAMME EXPENDITURE,RISK ASSESSMENT - RESEARCH AND DEVELOPMENT,C E F A S,2011700025,39413.70,Critical review of microbiological colonisation of nano- and microplastics and their significance to the food chain,NR33 0HT,Admin
FOOD STANDARDS AGENCY - Westminster,FOOD STANDARDS AGENCY - Westminster,2021-04-06,EXP - PURCHASE OF GOODS/SERVICES - OTHER - PROGRAMME EXPENDITURE,RISK ASSESSMENT - RESEARCH AND DEVELOPMENT,C E F A S,2011700025,7882.74,UK VAT - UK VAT,NR33 0HT,Admin
FOOD STANDARDS AGENCY - Westminster,FOOD STANDARDS AGENCY - Westminster,2021-04-06,EXP - PURCHASE OF GOODS/SERVICES - OTHER - PROGRAMME EXPENDITURE,REGULATORY DELIVERY,C E F A S,2011700025,22295.48,Shellfish Classification Management,NR33 0HT,Admin
FOOD STANDARDS AGENCY - Westminster,FOOD STANDARDS AGENCY - Westminster,2021-04-06,EXP - PURCHASE OF GOODS/SERVICES - OTHER - PROGRAMME EXPENDITURE,REGULATORY DELIVERY,C E F A S,2011700025,36559.08,Shellfish Biotoxin Analysis,NR33 0HT,Admin
FOOD STANDARDS AGENCY - Westminster,FOOD STANDARDS AGENCY - Westminster,2021-04-06,EXP - PURCHASE OF GOODS/SERVICES - OTHER - PROGRAMME EXPENDITURE,SCIENTIFIC METHODS AND LABORATORY POLICY,C E F A S,2011700025,2802.00,FSA and UK National Reference Laboratory for Anisakis,NR33 0HT,Admin
FOOD STANDARDS AGENCY - Westminster,FOOD STANDARDS AGENCY - Westminster,2021-04-06,EXP - PURCHASE OF GOODS/SERVICES - OTHER - PROGRAMME EXPENDITURE,SCIENTIFIC METHODS AND LABORATORY POLICY,C E F A S,2011700025,5699.00,FSA and UK National Reference Laboratory for Anisakis,NR33 0HT,Admin
FOOD STANDARDS AGENCY - Westminster,FOOD STANDARDS AGENCY - Westminster,2021-04-01,Redacted under S43 FOI Act,OPERATIONAL DELIVERY,Redacted under S43 FOI Act,4011700001,136000.00,Redacted under S43 FOI Act,Redacted under S43 FOI Act,Admin
FOOD STANDARDS AGENCY - Westminster,FOOD STANDARDS AGENCY - Westminster,2021-04-12,EXP - PURCHASE OF GOODS/SERVICES - OTHER ICT COSTS - COMPUTER SOFTWARE,NFCU II - Prevention and Investigation,CLUE COMPUTING COMPANY LTD,1011715682,128158.00,FSA632 - NFCU Case Management System Software,BS14 0LP,Admin
FOOD STANDARDS AGENCY - Westminster,FOOD STANDARDS AGENCY - Westminster,2021-04-21,EXP - PURCHASE OF GOODS/SERVICES - ACCOMMODATION & BLDNG MANAGEMENT - CILOR,SECURITY & ESTATES,GOVERNMENT PROPERTY AGENCY,1011715801,136566.02,SOP1-771784-173305-174097-CLIVE HOUSE RATES,EH3 8EG,Admin
FOOD STANDARDS AGENCY - Westminster,FOOD STANDARDS AGENCY - Westminster,2021-04-19,EXP - PURCHASE OF GOODS/SERVICES - SHARED SERV OUTSRCG- CIVIL SERV PENSION ADMIN,FINANCE,LONDON PENSIONS FUND AUTHORITY,1011715765,125000.00,SOP1-770640-173305-174097-LPFA ADDITIONAL ERS,EC3N 4LP,Admin
FOOD STANDARDS AGENCY - Westminster,FOOD STANDARDS AGENCY - Westminster,2021-04-06,EXP - PURCHASE OF GOODS/SERVICES - OTHER - PROGRAMME EXPENDITURE,"SCIENCE STRATEGY, CAPABILITY AND RESEARCH",IPSOS MORI,1011715615,12625.00,Further funds PO11770005929 Covid tracker - revised costs,E1W 1YW,Admin
FOOD STANDARDS AGENCY - Westminster,FOOD STANDARDS AGENCY - Westminster,2021-04-06,EXP - PURCHASE OF GOODS/SERVICES - OTHER - PROGRAMME EXPENDITURE,ANALYTICS UNIT,IPSOS MORI,1011715615,60000.00,Qualitative consumer research to explore behaviour change/messaging on recommended practice  FS430649,E1W 1YW,Admin
FOOD STANDARDS AGENCY - Westminster,FOOD STANDARDS AGENCY - Westminster,2021-04-06,EXP - PURCHASE OF GOODS/SERVICES - OTHER - PROGRAMME EXPENDITURE,ANALYTICS UNIT,IPSOS MORI,1011715615,26650.00,The work package will provide a workshop to draw together evidence from independent experts FS301048,E1W 1YW,Admin
FOOD STANDARDS AGENCY - Westminster,FOOD STANDARDS AGENCY - Westminster,2021-04-26,EXP - PURCHASE OF GOODS/SERVICES - OTHER ICT COSTS - COMPUTER HARDWARE,IT SERVICE DELIVERY,COREAZURE LTD,1011715834,8512.46,IT24 Var 2 - Azure CSP  Consumption Dec 20 & Jan 21,EC1N 8TS,Admin
FOOD STANDARDS AGENCY - Westminster,FOOD STANDARDS AGENCY - Westminster,2021-04-26,EXP - PURCHASE OF GOODS/SERVICES - OTHER ICT COSTS - COMPUTER HARDWARE,IT SERVICE DELIVERY,COREAZURE LTD,1011715834,83643.55,IT24 Var 2 - Azure CSP  Consumption March 21,EC1N 8TS,Admin
FOOD STANDARDS AGENCY - Westminster,FOOD STANDARDS AGENCY - Westminster,2021-04-06,Exp - Purchase Of Goods/Services - Consultancy,CHIEF EXECUTIVE & PRIVATE OFFICE,DELOITTE LLP,1011715598,88600.00,Support to Develop a Service Catalogue for the FSA,MK9 1FD,Admin
FOOD STANDARDS AGENCY - Westminster,FOOD STANDARDS AGENCY - Westminster,2021-04-06,Exp - Purchase Of Goods/Services - Consultancy,CHIEF EXECUTIVE & PRIVATE OFFICE,DELOITTE LLP,1011715598,17720.00,UK VAT - UK VAT,MK9 1FD,Admin
FOOD STANDARDS AGENCY - Westminster,FOOD STANDARDS AGENCY - Westminster,2021-04-15,EXP - PURCHASE OF GOODS/SERVICES - OTHER PROFESSIONAL SERVICES,OPERATIONS TRANSFORMATION PROGRAMME,DELOITTE LLP,1011715737,18950.00,Professional Services,MK9 1FD,Admin
FOOD STANDARDS AGENCY - Westminster,FOOD STANDARDS AGENCY - Westminster,2021-04-15,EXP - PURCHASE OF GOODS/SERVICES - OTHER PROFESSIONAL SERVICES,OPERATIONS TRANSFORMATION PROGRAMME,DELOITTE LLP,1011715737,58350.00,Professional Services,MK9 1FD,Admin
FOOD STANDARDS AGENCY - Westminster,FOOD STANDARDS AGENCY - Westminster,2021-04-15,EXP - PURCHASE OF GOODS/SERVICES - OTHER PROFESSIONAL SERVICES,OPERATIONS TRANSFORMATION PROGRAMME,DELOITTE LLP,1011715737,3790.00,UK VAT - UK VAT,MK9 1FD,Admin
FOOD STANDARDS AGENCY - Westminster,FOOD STANDARDS AGENCY - Westminster,2021-04-15,EXP - PURCHASE OF GOODS/SERVICES - OTHER PROFESSIONAL SERVICES,OPERATIONS TRANSFORMATION PROGRAMME,DELOITTE LLP,1011715737,11670.00,UK VAT - UK VAT,MK9 1FD,Admin
FOOD STANDARDS AGENCY - Westminster,FOOD STANDARDS AGENCY - Westminster,2021-04-15,EXP - PURCHASE OF GOODS/SERVICES - OTHER PROFESSIONAL SERVICES,OPERATIONS TRANSFORMATION PROGRAMME,DELOITTE LLP,1011715737,2950.00,Professional Services,MK9 1FD,Admin
FOOD STANDARDS AGENCY - Westminster,FOOD STANDARDS AGENCY - Westminster,2021-04-15,EXP - PURCHASE OF GOODS/SERVICES - OTHER PROFESSIONAL SERVICES,OPERATIONS TRANSFORMATION PROGRAMME,DELOITTE LLP,1011715737,590.00,UK VAT - UK VAT,MK9 1FD,Admin
FOOD STANDARDS AGENCY - Westminster,FOOD STANDARDS AGENCY - Westminster,2021-04-06,EXP - PURCHASE OF GOODS/SERVICES - OTHER - PROGRAMME EXPENDITURE,SCIENTIFIC METHODS AND LABORATORY POLICY,I10 LTD,1011715595,75275.00,FSA728 WP2 - Sampling System Discovery,NG31 6JL,Admin
FOOD STANDARDS AGENCY - Westminster,FOOD STANDARDS AGENCY - Westminster,2021-04-26,EXP - PURCHASE OF GOODS/SERVICES - OTHER - PROGRAMME EXPENDITURE,SCIENTIFIC METHODS AND LABORATORY POLICY,PUBLIC HEALTH ENGLAND,2011700032,-69153.83,FS516010 - National Reference Laboratory for Microbiology,NW9 5EQ,Admin
FOOD STANDARDS AGENCY - Westminster,FOOD STANDARDS AGENCY - Westminster,2021-04-26,EXP - PURCHASE OF GOODS/SERVICES - OTHER - PROGRAMME EXPENDITURE,SCIENTIFIC METHODS AND LABORATORY POLICY,PUBLIC HEALTH ENGLAND,2011700032,69153.83,FS516010 - National Reference Laboratory for Microbiology,NW9 5EQ,Admin
FOOD STANDARDS AGENCY - Westminster,FOOD STANDARDS AGENCY - Westminster,2021-04-26,EXP - PURCHASE OF GOODS/SERVICES - OTHER - PROGRAMME EXPENDITURE,SCIENTIFIC METHODS AND LABORATORY POLICY,PUBLIC HEALTH ENGLAND,2011700032,74986.08,FS516010 - National Reference Laboratory for Microbiology,NW9 5EQ,Admin
FOOD STANDARDS AGENCY - Westminster,FOOD STANDARDS AGENCY - Westminster,2021-04-28,EXP - PURCHASE OF GOODS/SERVICES - OTHER ICT COSTS - COMPUTER SOFTWARE,IT SERVICE DELIVERY,NINTEX UK LTD,1011715855,67650.00,K2 Subscription & Licenses 25/02/21 to 24/02/23,WC2B5AH,Admin
FOOD STANDARDS AGENCY - Westminster,FOOD STANDARDS AGENCY - Westminster,2021-04-28,EXP - PURCHASE OF GOODS/SERVICES - OTHER ICT COSTS - COMPUTER SOFTWARE,IT SERVICE DELIVERY,NINTEX UK LTD,1011715855,13530.00,UK VAT - UK VAT,WC2B5AH,Admin
FOOD STANDARDS AGENCY - Westminster,FOOD STANDARDS AGENCY - Westminster,2021-04-21,EXP - PURCHASE OF GOODS/SERVICES - OTHER - PROGRAMME EXPENDITURE,"SCIENCE STRATEGY, CAPABILITY AND RESEARCH",QUADRAM INSTITUTE BIOSCIENCE,1011715795,62500.00,"FS101185 - This is a five-year joint research fellowship between the FSA and Quadram Institutes Biosciences (QIB), to develop a programme of work on bacterial foodborne pathogens and food safety.",NR4 7UA,Admin
FOOD STANDARDS AGENCY - Westminster,FOOD STANDARDS AGENCY - Westminster,2021-04-07,EXP - PURCHASE OF GOODS/SERVICES - OTHER - PROGRAMME EXPENDITURE,ANALYTICS UNIT,IPSOS MORI,1011715643,55700.00,Surveys to compare  IID rates during COVID-19 to those post COVID-19. Additional 2 waves Add a line to PO11770006271  FS430584,E1W 1YW,Admin
FOOD STANDARDS AGENCY - Westminster,FOOD STANDARDS AGENCY - Westminster,2021-04-16,EXP - PURCHASE OF GOODS/SERVICES - OTHER FACILTIES COSTS - SECURITY,"DATA, INFORMATION, GOVERNANCE AND SECURITY",LITTLE FISH UK LTD,1011715745,500.00,UK VAT - UK VAT,NG1 1LS,Admin
FOOD STANDARDS AGENCY - Westminster,FOOD STANDARDS AGENCY - Westminster,2021-04-16,EXP - PURCHASE OF GOODS/SERVICES - OTHER FACILTIES COSTS - SECURITY,"DATA, INFORMATION, GOVERNANCE AND SECURITY",LITTLE FISH UK LTD,1011715745,2500.00,User Education & Awareness - Phishing,NG1 1LS,Admin
FOOD STANDARDS AGENCY - Westminster,FOOD STANDARDS AGENCY - Westminster,2021-04-16,EXP - PURCHASE OF GOODS/SERV - SUPPORT - IT SUPPORT SERVICES,IT SERVICE DELIVERY,LITTLE FISH UK LTD,1011715745,3122.00,IT25 Major Incident Management (Apr 21-Aug 21),NG1 1LS,Admin
FOOD STANDARDS AGENCY - Westminster,FOOD STANDARDS AGENCY - Westminster,2021-04-16,EXP - PURCHASE OF GOODS/SERV - SUPPORT - IT SUPPORT SERVICES,IT SERVICE DELIVERY,LITTLE FISH UK LTD,1011715745,20843.50,IT19 Build Manage & Maintain (EUC) (Apr 21-Aug 21),NG1 1LS,Admin
FOOD STANDARDS AGENCY - Westminster,FOOD STANDARDS AGENCY - Westminster,2021-04-16,EXP - PURCHASE OF GOODS/SERV - SUPPORT - IT SUPPORT SERVICES,IT SERVICE DELIVERY,LITTLE FISH UK LTD,1011715745,28264.00,IT25 Helpdesk Servicedesk (Apr 21-Aug 21),NG1 1LS,Admin
FOOD STANDARDS AGENCY - Westminster,FOOD STANDARDS AGENCY - Westminster,2021-04-14,EXP - PURCHASE OF GOODS/SERVICES - OTHER - PROGRAMME EXPENDITURE,SCIENTIFIC METHODS AND LABORATORY POLICY,LGC LTD,1011715711,20000.00,Harmonised GMO Screening Approach R&D,TW11 0LY,Admin
FOOD STANDARDS AGENCY - Westminster,FOOD STANDARDS AGENCY - Westminster,2021-04-14,EXP - PURCHASE OF GOODS/SERVICES - OTHER - PROGRAMME EXPENDITURE,SCIENTIFIC METHODS AND LABORATORY POLICY,LGC LTD,1011715711,30024.27,NRL GMO variation routine work,TW11 0LY,Admin
FOOD STANDARDS AGENCY - Westminster,FOOD STANDARDS AGENCY - Westminster,2021-04-14,EXP - PURCHASE OF GOODS/SERVICES - OTHER - PROGRAMME EXPENDITURE,SCIENTIFIC METHODS AND LABORATORY POLICY,LGC LTD,1011715711,1133.33,CEN Standardisation support - horsemeat,TW11 0LY,Admin
FOOD STANDARDS AGENCY - Westminster,FOOD STANDARDS AGENCY - Westminster,2021-04-01,EXP - PURCHASE OF GOODS/SERVICES - OTHER - PROGRAMME EXPENDITURE,RISK ASSESSMENT - RESEARCH AND DEVELOPMENT,EPIMORPHICS LTD,1011715582,46930.00,FSA581 WP30 - Regulated Products Register,BS20 6PT,Admin
FOOD STANDARDS AGENCY - Westminster,FOOD STANDARDS AGENCY - Westminster,2021-04-09,EXP - PURCHASE OF GOODS/SERVICES - OTHER - PROGRAMME EXPENDITURE,ACHIEVING BUSINESS COMPLIANCE,I C F CONSULTING SERVICES LTD,1011715665,19720.00,ABC Evaluation FS305038,EC4M 5SB,Admin
FOOD STANDARDS AGENCY - Westminster,FOOD STANDARDS AGENCY - Westminster,2021-04-09,EXP - PURCHASE OF GOODS/SERVICES - OTHER - PROGRAMME EXPENDITURE,ACHIEVING BUSINESS COMPLIANCE,I C F CONSULTING SERVICES LTD,1011715665,25449.50,ABC Evaluation FS305038,EC4M 5SB,Admin
FOOD STANDARDS AGENCY - Westminster,FOOD STANDARDS AGENCY - Westminster,2021-04-19,EXP - PURCHASE OF GOODS/SERVICES - OTHER - CARRIAGE OF SAMPLES,OPERATIONAL DELIVERY,TOPSPEED COURIERS LIMITED,1011715766,3004.40,Topspeed Couriers - Collection of Raw Cows Drinking Milk Samples - Delivery of Official Controls,WA16 8XN,Admin
FOOD STANDARDS AGENCY - Westminster,FOOD STANDARDS AGENCY - Westminster,2021-04-19,EXP - PURCHASE OF GOODS/SERVICES - OTHER - CARRIAGE OF SAMPLES,OPERATIONAL DELIVERY,TOPSPEED COURIERS LIMITED,1011715766,216.00,Topspeed - DNA ear tags,WA16 8XN,Admin
FOOD STANDARDS AGENCY - Westminster,FOOD STANDARDS AGENCY - Westminster,2021-04-19,EXP - PURCHASE OF GOODS/SERVICES - OTHER - CARRIAGE OF SAMPLES,OPERATIONAL DELIVERY,TOPSPEED COURIERS LIMITED,1011715766,13230.00,Topspeed Couriers - Collection of Trichinella samples - Delivery of Official Controls,WA16 8XN,Admin
FOOD STANDARDS AGENCY - Westminster,FOOD STANDARDS AGENCY - Westminster,2021-04-19,EXP - PURCHASE OF GOODS/SERVICES - OTHER - CARRIAGE OF SAMPLES,OPERATIONAL DELIVERY,TOPSPEED COURIERS LIMITED,1011715766,16800.00,Topspeed Couriers - Collection of RIM samples,WA16 8XN,Admin
FOOD STANDARDS AGENCY - Westminster,FOOD STANDARDS AGENCY - Westminster,2021-04-19,EXP - PURCHASE OF GOODS/SERVICES - OTHER - CARRIAGE OF SAMPLES,OPERATIONAL DELIVERY,TOPSPEED COURIERS LIMITED,1011715766,5940.00,Topspeed - Collect and Deliver TB samples to APHA,WA16 8XN,Admin
FOOD STANDARDS AGENCY - Westminster,FOOD STANDARDS AGENCY - Westminster,2021-04-19,EXP - PURCHASE OF GOODS/SERVICES - OTHER - CARRIAGE OF SAMPLES,OPERATIONAL DELIVERY,TOPSPEED COURIERS LIMITED,1011715766,1550.00,Topspeed Couriers - Pig AMR sample collections,WA16 8XN,Admin
FOOD STANDARDS AGENCY - Westminster,FOOD STANDARDS AGENCY - Westminster,2021-04-06,EXP - PURCHASE OF GOODS/SERVICES - OTHER - PROGRAMME EXPENDITURE,SCIENTIFIC METHODS AND LABORATORY POLICY,LGC LTD,1011715619,39999.62,FS101206-DEVELOPMENT OF QUALITY CONTROL MATERIALS FOR FOOD ALLERGEN ANALYSIS12/01/2018 to 10/05/2019,TW11 0LY,Admin
FOOD STANDARDS AGENCY - Westminster,FOOD STANDARDS AGENCY - Westminster,2021-04-01,EXP - PURCHASE OF GOODS/SERVICES - OTHER - PROGRAMME EXPENDITURE,COMMS,MANNING GOTTLIEB OMD,1011715587,4301.66,Manning Gotlieb - media spend towards Allergy plan,WC1E 7EY,Admin
FOOD STANDARDS AGENCY - Westminster,FOOD STANDARDS AGENCY - Westminster,2021-04-01,EXP - PURCHASE OF GOODS/SERVICES - OTHER - PROGRAMME EXPENDITURE,COMMS,MANNING GOTTLIEB OMD,1011715587,13620.94,Manning Gotlieb - media spend towards Allergy plan,WC1E 7EY,Admin
FOOD STANDARDS AGENCY - Westminster,FOOD STANDARDS AGENCY - Westminster,2021-04-01,EXP - PURCHASE OF GOODS/SERVICES - OTHER - PROGRAMME EXPENDITURE,COMMS,MANNING GOTTLIEB OMD,1011715587,4595.59,Manning Gottlieb OMD/Digital media promotion costs for PPDS,WC1E 7EY,Admin
FOOD STANDARDS AGENCY - Westminster,FOOD STANDARDS AGENCY - Westminster,2021-04-01,EXP - PURCHASE OF GOODS/SERVICES - OTHER - PROGRAMME EXPENDITURE,COMMS,MANNING GOTTLIEB OMD,1011715587,17376.02,Manning Gottlieb OMD/Digital media promotion costs for PPDS,WC1E 7EY,Admin
FOOD STANDARDS AGENCY - Westminster,FOOD STANDARDS AGENCY - Westminster,2021-04-01,EXP - AMORTISATION - INTANGIBLE ASSETS,IT SERVICE DELIVERY,TRUSTMARQUE SOLUTIONS LTD,1011715592,38267.13,IT38 36 Month Renewal of SNOW support and maintenance (29.03.21 to 28.03.23),YO32 9GZ,Capital
FOOD STANDARDS AGENCY - Westminster,FOOD STANDARDS AGENCY - Westminster,2021-04-01,EXP - AMORTISATION - INTANGIBLE ASSETS,IT SERVICE DELIVERY,TRUSTMARQUE SOLUTIONS LTD,1011715592,7653.43,UK VAT - UK VAT,YO32 9GZ,Capital
FOOD STANDARDS AGENCY - Westminster,FOOD STANDARDS AGENCY - Westminster,2021-04-16,EXP - PURCHASE OF GOODS/SERVICES - ACCOMM & BLDNG MGMT - SHARED SITE RECHARGE,SECURITY & ESTATES,BIRMINGHAM CITY COUNCIL,1011715754,44800.00,SOP1-770276-901256-174097-AOEX HOUSE RATES,B4 7AD,Admin
FOOD STANDARDS AGENCY - Westminster,FOOD STANDARDS AGENCY - Westminster,2021-04-06,EXP - PURCHASE OF GOODS/SERVICES - OTHER - PROGRAMME EXPENDITURE,ANALYTICS UNIT,CAMPDEN BRI,1011715616,33828.40,Supply of Comparing international approaches to food safety regulation of GM and Novel Foods,GL55 6LD,Admin
FOOD STANDARDS AGENCY - Westminster,FOOD STANDARDS AGENCY - Westminster,2021-04-14,EXP - PURCHASE OF GOODS/SERVICES - OTHER - PROGRAMME EXPENDITURE,ANALYTICS UNIT,GLASGOWS LTD,1011715721,33062.35,Supports FSA International Food Regulatory Analysis Conference 2021 New line PO11770006642,PR25 3UQ,Admin
FOOD STANDARDS AGENCY - Westminster,FOOD STANDARDS AGENCY - Westminster,2021-04-14,EXP - PURCHASE OF GOODS/SERVICES - OTHER - PROGRAMME EXPENDITURE,ANALYTICS UNIT,GLASGOWS LTD,1011715721,6612.47,UK VAT - UK VAT,PR25 3UQ,Admin
FOOD STANDARDS AGENCY - Westminster,FOOD STANDARDS AGENCY - Westminster,2021-04-20,EXP - PURCHASE OF GOODS/SERVICES - OTHER - PROGRAMME EXPENDITURE,"SCIENCE STRATEGY, CAPABILITY AND RESEARCH",IPSOS MORI,1011715781,1180.00,Covid tracker - revised costs,E1W 1YW,Admin
FOOD STANDARDS AGENCY - Westminster,FOOD STANDARDS AGENCY - Westminster,2021-04-20,EXP - PURCHASE OF GOODS/SERVICES - OTHER - PROGRAMME EXPENDITURE,"SCIENCE STRATEGY, CAPABILITY AND RESEARCH",IPSOS MORI,1011715781,7085.00,Covid tracker - revised costs Further increase,E1W 1YW,Admin
FOOD STANDARDS AGENCY - Westminster,FOOD STANDARDS AGENCY - Westminster,2021-04-20,EXP - PURCHASE OF GOODS/SERVICES - OTHER - PROGRAMME EXPENDITURE,"SCIENCE STRATEGY, CAPABILITY AND RESEARCH",IPSOS MORI,1011715781,4640.00,Further funds PO11770005929 Covid tracker - revised costs,E1W 1YW,Admin
FOOD STANDARDS AGENCY - Westminster,FOOD STANDARDS AGENCY - Westminster,2021-04-20,EXP - PURCHASE OF GOODS/SERVICES - TRAINING & DEVELOPMENT,RISK ASSESSMENT - RESEARCH AND DEVELOPMENT,IPSOS MORI,1011715781,19880.00,Survey of Consumer Practices with Respect to Frozen Chicken ProductsFS430723,E1W 1YW,Admin
FOOD STANDARDS AGENCY - Westminster,FOOD STANDARDS AGENCY - Westminster,2021-04-07,EXP - PURCHASE OF GOODS/SERVICES - OTHER - PROGRAMME EXPENDITURE,SCIENTIFIC METHODS AND LABORATORY POLICY,CAMPDEN BRI,1011715644,32534.88,FS430629 - International Sampling Desk Study,GL55 6LD,Admin
FOOD STANDARDS AGENCY - Westminster,FOOD STANDARDS AGENCY - Westminster,2021-04-15,EXP - AMORTISATION - INTANGIBLE ASSETS,IT SERVICE DELIVERY,TEQEX LTD,1011715740,31500.00,20S4004MUK Lenovo ThinkPad P14S G1 20S4004MUK Core i7-10510U 16GB 512GB SSD 14IN FHD Win 10 Pro TOUCHSCREEN - NVIDIA Quadro P520 2GB GDDR5,OL10 1ND,Capital
FOOD STANDARDS AGENCY - Westminster,FOOD STANDARDS AGENCY - Westminster,2021-04-15,EXP - AMORTISATION - INTANGIBLE ASSETS,IT SERVICE DELIVERY,TEQEX LTD,1011715740,6300.00,UK VAT - UK VAT,OL10 1ND,Capital
FOOD STANDARDS AGENCY - Westminster,FOOD STANDARDS AGENCY - Westminster,2021-04-16,EXP - PURCHASE OF GOODS/SERVICES - OTHER PROFESSIONAL SERVICES,OPERATIONAL DELIVERY,ARCO UK LTD,1011715751,-31.25,PPE Bulk purchase order funds 11770002606  20/21,HU1 2SJ,Admin
FOOD STANDARDS AGENCY - Westminster,FOOD STANDARDS AGENCY - Westminster,2021-04-16,EXP - PURCHASE OF GOODS/SERVICES - OTHER PROFESSIONAL SERVICES,OPERATIONAL DELIVERY,ARCO UK LTD,1011715751,14670.65,PPE Bulk purchase order funds 11770002606  20/21,HU1 2SJ,Admin
FOOD STANDARDS AGENCY - Westminster,FOOD STANDARDS AGENCY - Westminster,2021-04-16,EXP - PURCHASE OF GOODS/SERVICES - OTHER PROFESSIONAL SERVICES,OPERATIONAL DELIVERY,ARCO UK LTD,1011715751,16450.96,PPE Bulk purchase order funds 11770002606  20/21,HU1 2SJ,Admin
FOOD STANDARDS AGENCY - Westminster,FOOD STANDARDS AGENCY - Westminster,2021-04-01,EXP - PURCHASE OF GOODS/SERVICES - OTHER - PROGRAMME EXPENDITURE,Surveillance,H M REVENUE & CUSTOMS,1011715588,28333.00,Open Ecosystem Federation legal advice,CF14 5XZ,Admin
FOOD STANDARDS AGENCY - Westminster,FOOD STANDARDS AGENCY - Westminster,2021-04-08,EXP - PURCHASE OF GOODS/SERVICES - OTHER - PROGRAMME EXPENDITURE,SCIENTIFIC METHODS AND LABORATORY POLICY,LGC LTD,1011715648,27000.00,NRL Interim GMO authorisationFS430418,TW11 0LY,Admin
FOOD STANDARDS AGENCY - Westminster,FOOD STANDARDS AGENCY - Westminster,2021-04-12,EXP - PURCHASE OF GOODS/SERVICES - OTHER - PROGRAMME EXPENDITURE,ACHIEVING BUSINESS COMPLIANCE,CIVICA UK LTD,1011715679,12886.25,Register a Food Business (RAFB) - Development to Improve Structural Robustness,DY1 4TD,Admin
FOOD STANDARDS AGENCY - Westminster,FOOD STANDARDS AGENCY - Westminster,2021-04-12,EXP - PURCHASE OF GOODS/SERVICES - OTHER - PROGRAMME EXPENDITURE,ACHIEVING BUSINESS COMPLIANCE,CIVICA UK LTD,1011715679,2577.25,UK VAT - UK VAT,DY1 4TD,Admin
FOOD STANDARDS AGENCY - Westminster,FOOD STANDARDS AGENCY - Westminster,2021-04-12,EXP - PURCHASE OF GOODS/SERVICES - OTHER - PROGRAMME EXPENDITURE,DIGITAL,CIVICA UK LTD,1011715679,2443.52,FSA672 WP27 Accessibility Enhancements Call-Off,DY1 4TD,Admin
FOOD STANDARDS AGENCY - Westminster,FOOD STANDARDS AGENCY - Westminster,2021-04-12,EXP - PURCHASE OF GOODS/SERVICES - OTHER - PROGRAMME EXPENDITURE,ACHIEVING BUSINESS COMPLIANCE,CIVICA UK LTD,1011715679,11640.52,ABC RAFB Iterative Development - Accessibility,DY1 4TD,Admin
FOOD STANDARDS AGENCY - Westminster,FOOD STANDARDS AGENCY - Westminster,2021-04-12,EXP - PURCHASE OF GOODS/SERVICES - OTHER - PROGRAMME EXPENDITURE,ACHIEVING BUSINESS COMPLIANCE,CIVICA UK LTD,1011715679,2328.10,UK VAT - UK VAT,DY1 4TD,Admin
FOOD STANDARDS AGENCY - Westminster,FOOD STANDARDS AGENCY - Westminster,2021-04-07,EXP - PURCHASE OF GOODS/SERVICES - OTHER ICT COSTS - COMPUTER SOFTWARE,FOOD INCIDENTS AND RESILIENCE PROG(PROG),RAINMAKER SOLUTIONS LTD,1011715631,15600.00,EXTRA LINE: FSA693 Incidents Service Private Beta,W1A 6US,Admin
FOOD STANDARDS AGENCY - Westminster,FOOD STANDARDS AGENCY - Westminster,2021-04-15,EXP - PURCHASE OF GOODS/SERVICES - PERSONNEL RELATED - WELFARE SERVICES,RISK ASSESSMENT - RESEARCH AND DEVELOPMENT,BASIS RESEARCH LTD,1011715742,25000.00,New line PO11770006870  FS430651,WIT 1PH,Admin
FOOD STANDARDS AGENCY - Westminster,FOOD STANDARDS AGENCY - Westminster,2021-04-07,EXP - PURCHASE OF GOODS/SERVICES - OTHER - PROGRAMME EXPENDITURE,COMMS,MSQ PARTNERS GROUP LTD,1011715636,3000.00,MSQ - Allergens YP  Covid testing for shoot,W1T 4TJ,Admin
FOOD STANDARDS AGENCY - Westminster,FOOD STANDARDS AGENCY - Westminster,2021-04-07,EXP - PURCHASE OF GOODS/SERVICES - OTHER - PROGRAMME EXPENDITURE,COMMS,MSQ PARTNERS GROUP LTD,1011715636,370.00,Extra Line:11770006829/Welsh influencer - UB/BB dates,W1T 4TJ,Admin
FOOD STANDARDS AGENCY - Westminster,FOOD STANDARDS AGENCY - Westminster,2021-04-07,EXP - PURCHASE OF GOODS/SERVICES - OFFICE RELATED - PUBLICATIONS,COMMS,MSQ PARTNERS GROUP LTD,1011715636,19625.66,MSQ - Internal Comms Awards,W1T 4TJ,Admin
FOOD STANDARDS AGENCY - Westminster,FOOD STANDARDS AGENCY - Westminster,2021-04-30,EXP - PURCHASE OF GOODS/SERVICES - TELECOMS - MOBILE PHONES,IT SERVICE DELIVERY,EE LTD,1011715874,22844.42,EE Monthly Charges - April 21,AL10 9BW,Admin
FOOD STANDARDS AGENCY - Westminster,FOOD STANDARDS AGENCY - Westminster,2021-04-30,EXP - PURCHASE OF GOODS/SERVICES - TELECOMS - MOBILE PHONES,IT SERVICE DELIVERY,EE LTD,1011715874,4566.49,UK VAT - UK VAT,AL10 9BW,Admin
FOOD STANDARDS AGENCY - Westminster,FOOD STANDARDS AGENCY - Westminster,2021-04-16,EXP - AMORTISATION - INTANGIBLE ASSETS,IT SERVICE DELIVERY,STORM TECHNOLOGIES,1011715750,21905.20,Sandberg USB-C 6-in1 Travel Dock - Docking station - USB-C - HDMI - GigE - Quote No: 101571 - additional line,WD18 8YW,Capital
FOOD STANDARDS AGENCY - Westminster,FOOD STANDARDS AGENCY - Westminster,2021-04-16,EXP - AMORTISATION - INTANGIBLE ASSETS,IT SERVICE DELIVERY,STORM TECHNOLOGIES,1011715750,4381.04,UK VAT - UK VAT,WD18 8YW,Capital
FOOD STANDARDS AGENCY - Westminster,FOOD STANDARDS AGENCY - Westminster,2021-04-08,EXP - PURCHASE OF GOODS/SERVICES - OTHER - PROGRAMME EXPENDITURE,SCIENTIFIC METHODS AND LABORATORY POLICY,FERA SCIENCE LIMITED,1011715649,21545.00,FS 616030 - National Reference Laboratory for Contaminants,YO41 1LZ,Admin
FOOD STANDARDS AGENCY - Westminster,FOOD STANDARDS AGENCY - Westminster,2021-04-06,EXP - PURCHASE OF GOODS/SERVICES - OTHER PROFESSIONAL SERVICES,LEGAL  BRANCH A &INVESTIGATIONS,ALPINE RESOURCING LTD,1011715606,21477.15,Supply of Legal Prosecution & Litigation Case Management System,EC1A 7DH,Admin
FOOD STANDARDS AGENCY - Westminster,FOOD STANDARDS AGENCY - Westminster,2021-04-06,EXP - PURCHASE OF GOODS/SERVICES - OTHER PROFESSIONAL SERVICES,LEGAL  BRANCH A &INVESTIGATIONS,ALPINE RESOURCING LTD,1011715606,4295.43,UK VAT - UK VAT,EC1A 7DH,Admin
FOOD STANDARDS AGENCY - Westminster,FOOD STANDARDS AGENCY - Westminster,2021-04-14,EXP - PURCHASE OF GOODS/SERVICES - OTHER - PROGRAMME EXPENDITURE,ANALYTICS UNIT,IPSOS MORI,1011715713,-27960.00,Surveys to compare  IID rates during COVID-19 to those post COVID-19.,E1W 1YW,Admin
FOOD STANDARDS AGENCY - Westminster,FOOD STANDARDS AGENCY - Westminster,2021-04-14,EXP - PURCHASE OF GOODS/SERVICES - OTHER - PROGRAMME EXPENDITURE,ANALYTICS UNIT,IPSOS MORI,1011715713,-20970.00,Surveys to compare  IID rates during COVID-19 to those post COVID-19.,E1W 1YW,Admin
FOOD STANDARDS AGENCY - Westminster,FOOD STANDARDS AGENCY - Westminster,2021-04-14,EXP - PURCHASE OF GOODS/SERVICES - OTHER - PROGRAMME EXPENDITURE,ANALYTICS UNIT,IPSOS MORI,1011715713,20970.00,Surveys to compare  IID rates during COVID-19 to those post COVID-19.,E1W 1YW,Admin
FOOD STANDARDS AGENCY - Westminster,FOOD STANDARDS AGENCY - Westminster,2021-04-14,EXP - PURCHASE OF GOODS/SERVICES - OTHER - PROGRAMME EXPENDITURE,ANALYTICS UNIT,IPSOS MORI,1011715713,27960.00,Surveys to compare  IID rates during COVID-19 to those post COVID-19.,E1W 1YW,Admin
FOOD STANDARDS AGENCY - Westminster,FOOD STANDARDS AGENCY - Westminster,2021-04-14,EXP - PURCHASE OF GOODS/SERVICES - OTHER - PROGRAMME EXPENDITURE,ANALYTICS UNIT,IPSOS MORI,1011715713,20970.00,Surveys to compare  IID rates during COVID-19 to those post COVID-19. Additional 2 waves Add a line to PO11770006271  FS430584,E1W 1YW,Admin
